[Event "AI Cup Div-1 2023"]
[Site "Online"]
[Date "2023.09.26"]
[Round "51.1"]
[White "Firouzja, Alireza"]
[Black "Lazavik, Denis"]
[Result "1-0"]
[Annotator "TA"]
[ECO "C54"]
[WhiteElo "2777"]
[BlackElo "2560"]
[PlyCount "79"]
[EventDate "2023.09.18"]
[EventType "k.o."]
[EventCountry "NET"]
[SourceTitle "playchess.com"]
[Source "ChessBase"]
[SourceQuality "1"]
[TimeControl "900+3"]

{[%evp 11,79,10,23,8,15,14,15,15,25,11,8,8,15,7,19,14,7,13,20,6,4,0,0,3,17,0,15,14,26,17,20,10,18,20,20,70,118,79,264,267,254,269,338,187,187,169,188,197,198,183,223,213,208,74,390,380,593,579,629,615,704,698,724,702,1155,1137,1502,1550,1653,1652]} 1. e4 {[%emt 0:00:04]} e5 {[%emt 0:00:05]} 2. Nf3 {[%emt 0:00:01]} Nc6 {[%emt 0:00:02]} 3. Bc4 {[%emt 0:00:01]} Bc5 {[%emt 0:00:03]} 4. d3 {[%emt 0:00:01]} Nf6 {[%emt 0:00:02]} 5. h3 {[%emt 0:00:02]} d6 {[%emt 0:00:29]} 6. c3 {[%emt 0:00:02]} a6 {[%emt 0:00:06]} 7. a4 {[%emt 0:00:04] C54: Giuoco Piano: 4 c3 Nf6, main lines with 5 d4 and 5 d3.} (7. b4 $5 {[%cal Rb4c5]} Bb6 8. a4 $11) 7... h6 {[%emt 0:00:06]} 8. O-O {[%emt 0:00:17]} O-O {[%emt 0:00:03] The old main line.} 9. Re1 {[%emt 0:00:05] The position is equal.} Re8 {[%emt 0:00:12]} 10. a5 $5 {[%emt 0:00:08][%mdl 4] A promising side line.} Ba7 {[%emt 0:01:29]} 11. Bb3 {[%emt 0:00:08]} Be6 {[%emt 0:00:14]} 12. Ba4 {[%emt 0:00:03]} Bd7 {[%emt 0:00:31]} (12... d5 {looks sharper.} 13. exd5 Bxd5 14. Bxc6 bxc6 15. Nxe5 Qd6) 13. Nbd2 {[%emt 0:00:11]} Ne7 {[%emt 0:01:25]} (13... Nxa5 $2 14. Bxd7 Qxd7 15. Rxa5 $18) 14. Bc2 {[%emt 0:00:05]} Ng6 {[%emt 0:00:06]} 15. d4 {[%emt 0:00:03]} Bc6 {[%emt 0:01:39]} 16. Ra3 {[%emt 0:00:04] [#]} Rc8 $146 {[%emt 0:01:34]} ({Predecessor:} 16... Qe7 17. b4 Rad8 18. Bb1 Qf8 19. d5 Bd7 20. c4 Nf4 21. Nf1 c6 22. Be3 Bxe3 23. fxe3 Ng6 {1-0 Antipov,M (2609)-Beradze,I (2475) FIDE World Uni Final 1st blitz 2021 (5)}) 17. b4 {[%emt 0:00:39]} Nh7 {[%emt 0:01:51]} 18. Bb2 {[%emt 0:03:19]} Ng5 {[%emt 0:00:41]} 19. c4 {[%emt 0:00:26][%cal Bc3c4,Bc4c5][%mdl 32]} Bd7 {[%emt 0:00:20]} 20. dxe5 {[%emt 0:01:12]} dxe5 {[%emt 0:00:10]} 21. c5 {[%emt 0:00:12]} Bb5 {[%emt 0:00:53] Prevents Nc4} 22. Nxg5 {[%emt 0:01:18]} Qxg5 {[%emt 0:00:29]} 23. Rg3 {[%emt 0:00:41]} (23. Nf3 $11 Qe7 24. Bd3) 23... Qe7 {[%emt 0:00:04]} ({Black should play} 23... Qf6 $1 $14) 24. Qh5 {[%emt 0:01:21] [#] Strongly threatening Bb3. White is more active.} Rcd8 $2 {[%emt 0:00:44]} (24... Qf6 $16 {is a better defense.}) 25. Bb3 $1 $18 {[%emt 0:00:34]} Kf8 {[%emt 0:00:45]} 26. Nf3 {[%emt 0:01:57]} Nf4 {[%emt 0:00:31]} 27. Qxe5 {[%emt 0:00:32]} ({Weaker is} 27. Qg4 Qf6 $14) (27. Qf5 $142 {[%cal Rb2e5]} g6 28. Qxe5 Qxe5 29. Nxe5) 27... Qxe5 {[%emt 0:00:02]} 28. Bxe5 $40 {[%emt 0:00:17][%mdl 128] White goes for the king.} Nh5 {[%emt 0:00:17] Black is weak on the dark squares} 29. Rg4 {[%emt 0:00:34]} Rd3 {[%emt 0:00:05]} 30. Re3 {[%emt 0:00:08]} Rxe3 {[%emt 0:00:32]} 31. fxe3 {[%emt 0:00:01]} g5 {[%emt 0:00:06]} 32. Bd5 {[%emt 0:00:26]} (32. Bxc7 $18 {has better winning chances. Black must now prevent Bd6+.} Nf6 33. Bd6+ Kg8 34. Bd5 (34. Ne5 Kg7 $14)) 32... Be2 $2 {[%emt 0:00:20][%mdl 8192] [#]} (32... Bb8 $16 {is more resistant.}) 33. Bxc7 {[%emt 0:00:17]} Nf6 {[%emt 0:00:15]} (33... Bb8 {was necessary.}) 34. Bd6+ {[%emt 0:00:06] White is clearly winning.} Kg8 {[%emt 0:00:07]} 35. Bxb7 {[%emt 0:00:07]} Nxg4 {[%emt 0:00:08]} 36. hxg4 {[%emt 0:00:00]} Bb5 {[%emt 0:00:05]} 37. Nd4 {[%emt 0:00:11]} Bd7 {[%emt 0:00:01]} 38. Bxa6 {[%emt 0:00:17]} Rxe4 {[%emt 0:00:04]} 39. b5 {[%emt 0:00:01][%cal Bb4b5,Bb5b6][%mdl 32]} Rxe3 {[%emt 0:00:17]} 40. b6 {[%emt 0:00:01] Weighted Error Value: White=0.12 (very precise) /Black=0.43} 1-0

[Event "AI Cup Div-1 2023"]
[Site "Online"]
[Date "2023.09.26"]
[Round "51.2"]
[White "Giri, Anish"]
[Black "Nakamura, Hikaru"]
[Result "1-0"]
[Annotator "TA"]
[ECO "B00"]
[WhiteElo "2760"]
[BlackElo "2780"]
[PlyCount "95"]
[EventDate "2023.09.18"]
[EventType "k.o."]
[EventCountry "NET"]
[SourceTitle "playchess.com"]
[Source "ChessBase"]
[SourceQuality "1"]
[TimeControl "900+3"]

{[%evp 9,95,52,52,41,51,48,54,37,87,76,87,82,90,88,89,98,97,82,72,63,68,64,77,58,77,79,116,53,106,103,135,129,145,150,157,131,132,95,76,69,120,80,145,108,202,186,252,247,247,152,200,214,289,163,231,227,647,714,689,702,674,637,902,535,510,514,514,484,525,207,212,18,496,504,483,482,949,948,1386,1094,5143,4551,6025,5642,1857,1441,29989,29990]} 1. e4 {[%emt 0:00:03]} g6 {[%emt 0:00:12]} 2. d4 {[%emt 0:00:02]} Bg7 {[%emt 0:00:01]} 3. Nf3 {[%emt 0:00:02]} b6 {[%emt 0:00:04]} 4. Bd3 {[%emt 0:00:11]} Bb7 {[%emt 0:00:04]} 5. O-O {[%emt 0:00:01]} d6 {[%emt 0:00:01]} 6. Re1 {[%emt 0:00:04] B00: Queen's Fianchetto Defence, Nimzowitsch Defence.} Nd7 {[%emt 0:00:02]} 7. a4 {[%emt 0:00:07]} a6 {[%emt 0:00:03]} 8. a5 {[%emt 0:00:26] White is slightly better.} b5 {[%emt 0:00:14]} (8... c5 $14) 9. c4 $16 {[%emt 0:00:01]} bxc4 {[%emt 0:00:08]} 10. Bxc4 {[%emt 0:00:01]} e6 {[%emt 0:00:00] [#]} 11. d5 $146 {[%emt 0:00:31]} ({Predecessor:} 11. Ra3 Ne7 12. Rb3 Rb8 13. Qe2 O-O 14. Bg5 h6 15. Bxe7 Qxe7 16. Nbd2 c5 17. d5 exd5 18. exd5 Qxe2 19. Rxe2 {½-½ Hamdouchi,H (2562)-Adly,A (2636) Africa-chT rapid 2019 (4.1)}) 11... e5 {[%emt 0:00:03]} 12. b4 {[%emt 0:00:14][%cal Bb2b4,Bb4b5][%mdl 32]} Ne7 {[%emt 0:00:04]} 13. b5 {[%emt 0:00:12]} O-O {[%emt 0:00:04]} 14. Nc3 {[%emt 0:00:04]} h6 {[%emt 0:00:05]} 15. bxa6 {[%emt 0:01:48]} Bxa6 {[%emt 0:00:00]} 16. Qe2 {[%emt 0:00:02]} Bc8 {[%emt 0:00:35]} 17. a6 {[%emt 0:01:15]} f5 {[%emt 0:00:01]} 18. a7 {[%emt 0:00:02] White is much more active.} (18. Be3 $16) 18... g5 {[%emt 0:00:35]} ({Black should play} 18... fxe4 $14 19. Qxe4 (19. Nxe4 Nb6 $16) 19... Nc5) 19. Ra3 {[%emt 0:01:02]} f4 {[%emt 0:03:10]} 20. h3 {[%emt 0:00:08]} Kh8 {[%emt 0:00:03] Black is weak on the light squares} 21. Bd2 {[%emt 0:00:41]} Nb6 {[%emt 0:00:07]} 22. Nb5 {[%emt 0:01:12]} Bd7 {[%emt 0:00:15]} 23. Bd3 {[%emt 0:01:14]} Nec8 {[%emt 0:00:09]} 24. Rea1 {[%emt 0:00:01]} Rf7 {[%emt 0:00:23]} ({Better is} 24... c6 $14) 25. Bb4 {[%emt 0:00:16]} Bf6 {[%emt 0:03:14]} (25... c5 $142 26. dxc6 Bxc6) 26. Nh2 {[%emt 0:00:12]} Kh7 {[%emt 0:00:36]} (26... c5 $16) 27. Nc3 $36 {[%emt 0:00:08][%mdl 2048] White is on the roll.} c6 {[%emt 0:00:46]} (27... Qg8 $142 28. Bb5 Qg6 29. Bxd7 Nxd7) 28. dxc6 {[%emt 0:00:37]} (28. Qh5 Be8 $11) 28... Bxc6 {[%emt 0:00:00][%cal Rf7a7]} 29. Bb5 {[%emt 0:00:01]} (29. Qh5 $6 Be8) 29... Bb7 {[%emt 0:00:43]} (29... Qd7 $16 {was necessary.} 30. Qh5 (30. Bxc6 Qxc6 31. Qh5 Rb7 $16) 30... Rf8) 30. Qh5 {[%emt 0:00:21]} Qf8 {[%emt 0:00:01]} 31. Be2 {[%emt 0:01:37]} (31. Rd1 $142) 31... Bd8 {[%emt 0:01:01]} (31... Bc6 {is a better defense.}) 32. Bg4 {[%emt 0:00:11]} Nd7 $2 {[%emt 0:00:01]} (32... Bc6 33. Nd5 (33. Bf5+ Rxf5 34. exf5 Qxf5 $16) 33... Be8) 33. Be6 {[%emt 0:00:24]} Re7 {[%emt 0:00:03]} 34. Bf5+ {[%emt 0:00:06]} Kh8 {[%emt 0:00:01]} 35. Ng4 {[%emt 0:00:10]} Nf6 {[%emt 0:00:01]} 36. Qg6 {[%emt 0:00:19]} Nxg4 {[%emt 0:01:03]} 37. hxg4 {[%emt 0:00:03]} Qg7 {[%emt 0:00:04]} 38. Qxg7+ {[%emt 0:00:11]} (38. Bxd6 $2 Qxg6 39. Bxe5+ Rxe5 $17) 38... Kxg7 {[%emt 0:00:00]} 39. Nd5 {[%emt 0:00:41] Against Bb6} (39. Nb5) 39... Bxd5 {[%emt 0:00:23] [#]} 40. exd5 {[%emt 0:00:02]} ({Only move:} 40. Bxc8 $1 $18 Bxe4 41. Bxd6 (41. Bf5 Bxf5 42. gxf5 Rd7 $11) 41... Rxc8 42. Bxe7 Bxe7 43. a8=Q Bxa8 44. Rxa8 Rxa8 45. Rxa8) 40... Rc7 $2 {[%emt 0:00:00][%mdl 8192] This move loses the game for Black.} (40... Rexa7 $11 41. Rxa7+ Rxa7 42. Rxa7+ Nxa7) 41. Bxc8 {[%emt 0:00:10]} Rcxc8 {[%emt 0:00:00]} 42. Bxd6 {[%emt 0:00:01]} e4 {[%emt 0:00:00]} (42... Bc7 $142 43. Rc3 Bxd6 44. Rxc8 {[%mdl 64] Remove Defender} Rxc8) 43. Rb1 {[%emt 0:00:11] Threatens to win with Rb7+.} e3 {[%emt 0:00:05]} 44. fxe3 {[%emt 0:00:05]} fxe3 {[%emt 0:00:00]} 45. Rb7+ {[%emt 0:00:04]} Kg8 {[%emt 0:00:14]} 46. Rxe3 {[%emt 0:00:03][%cal Re3e8] [#]} Bf6 {[%emt 0:00:00]} 47. Be5 {[%emt 0:00:18]} ({Don't blunder} 47. Rb8 $2 Bd4 48. Kf2 Bxa7 $19) 47... Be7 {[%emt 0:00:03]} 48. Rxe7 {[%emt 0:00:01] Weighted Error Value: White=0.52/Black=0.68} 1-0

[Event "AI Cup Div-1 2023"]
[Site "Online"]
[Date "2023.09.26"]
[Round "51.2"]
[White "Lazavik, Denis"]
[Black "Firouzja, Alireza"]
[Result "1/2-1/2"]
[Annotator "TA"]
[ECO "E04"]
[WhiteElo "2560"]
[BlackElo "2777"]
[PlyCount "132"]
[EventDate "2023.09.18"]
[EventType "k.o."]
[EventCountry "NET"]
[SourceTitle "playchess.com"]
[Source "ChessBase"]
[SourceQuality "1"]
[TimeControl "900+3"]

{[%evp 24,132,36,41,41,45,44,44,42,39,47,44,45,45,44,43,44,43,44,41,42,43,42,41,41,41,41,41,63,62,49,62,50,59,57,30,73,30,30,30,30,30,30,37,32,15,29,15,32,16,32,32,50,7,7,7,8,7,12,9,10,0,10,0,11,15,15,0,18,0,0,0,0,0,0,0,0,0,0,0,0,0,0,0,0,0,0,0,0,0,0,0,0,0,0,0,0,0,0,0,0,0,0,0,0,0,0,0,0,0,0]} 1. d4 {[%emt 0:00:03]} Nf6 {[%emt 0:00:05]} 2. c4 {[%emt 0:00:02]} e6 {[%emt 0:00:01]} 3. Nf3 {[%emt 0:00:01]} d5 {[%emt 0:00:00]} 4. g3 {[%emt 0:00:03]} dxc4 {[%emt 0:00:01]} 5. Bg2 {[%emt 0:00:05]} c5 {[%emt 0:00:02]} 6. O-O {[%emt 0:00:47]} Nc6 {[%emt 0:00:01]} 7. Qa4 {[%emt 0:00:15]} Bd7 {[%emt 0:00:04]} 8. Qxc4 {[%emt 0:00:03]} cxd4 {[%emt 0:00:02]} 9. Nxd4 {[%emt 0:00:05]} Rc8 {[%emt 0:00:03]} 10. Nc3 {[%emt 0:00:04]} Nxd4 {[%emt 0:00:01]} 11. Qxd4 {[%emt 0:00:01]} Bc5 {[%emt 0:00:00]} 12. Qh4 {[%emt 0:00:02]} Bc6 {[%emt 0:00:01]} 13. Rd1 {[%emt 0:01:10]} Qa5 {[%emt 0:00:04] E04: Open Catalan: 5 Nf3.} 14. Bg5 {[%emt 0:01:02]} Be7 {[%emt 0:00:07]} 15. Bxc6+ {[%emt 0:00:26]} Rxc6 {[%emt 0:00:03] White is slightly better.} 16. Ne4 {[%emt 0:00:08] 16.Rac1 might become the main line.} Qe5 {[%emt 0:00:31][%csl LRb2,LRe4]} 17. Nxf6+ {[%emt 0:00:10]} Bxf6 {[%emt 0:00:04]} 18. Bxf6 {[%emt 0:00:02]} Qxf6 {[%emt 0:00:04]} 19. Qxf6 {[%emt 0:00:44]} gxf6 {[%emt 0:00:01]} 20. Rac1 {[%emt 0:00:01]} Rxc1 {[%emt 0:00:24]} 21. Rxc1 $14 {[%emt 0:00:01][%mdl 4096] [#] Endgame Strongly threatening Rc8+. KR-KR} Kd7 {[%emt 0:00:02] Dodges Rc8} 22. e4 {[%emt 0:00:05]} Rg8 {[%emt 0:01:50]} 23. h4 {[%emt 0:00:07] Prevents Rg5} Rg4 {[%emt 0:02:04]} 24. Rd1+ {[%emt 0:00:10]} Ke7 {[%emt 0:00:12]} 25. Re1 {[%emt 0:00:05] [#]} b5 $146 {[%emt 0:00:53]} ({Predecessor:} 25... Rg8 26. Rc1 Rd8 27. Kg2 Rd7 28. Kf3 f5 29. exf5 exf5 30. Rc5 Kf6 31. Kf4 Rd4+ {½-½ Mishin,A (2336)-Stukalov,M (2244) RUS RC1/Ruby email 2018}) 26. Kg2 {[%emt 0:00:40]} a5 {[%emt 0:00:53]} 27. Kf3 {[%emt 0:03:07]} Rg8 {[%emt 0:00:03]} 28. Rc1 $1 {[%emt 0:00:06] Repels Rc8} Kd6 {[%emt 0:00:07] Repels Rc7} 29. g4 {[%emt 0:01:16]} h6 {[%emt 0:02:52]} 30. Kf4 {[%emt 0:00:07]} a4 {[%emt 0:00:50]} 31. f3 {[%emt 0:00:20]} Rb8 {[%emt 0:00:08]} 32. Rc2 {[%emt 0:00:34]} Rg8 {[%emt 0:00:10]} 33. Ke3 {[%emt 0:00:43]} Rb8 {[%emt 0:00:09]} 34. Kd4 {[%emt 0:00:58]} Ra8 {[%emt 0:00:30]} 35. Rc1 {[%emt 0:00:26]} Rb8 {[%emt 0:00:16]} 36. Rc3 {[%emt 0:01:26]} Ra8 {[%emt 0:00:35]} 37. Ke3 {[%emt 0:00:04]} Rb8 {[%emt 0:01:18]} 38. f4 {[%emt 0:00:11]} Rg8 {[%emt 0:00:15] The position is equal.} 39. Kf3 {[%emt 0:00:03]} Rb8 {[%emt 0:00:12]} 40. h5 {[%emt 0:00:23]} Rg8 {[%emt 0:00:09]} 41. Rc2 {[%emt 0:00:03]} Rb8 {[%emt 0:00:30]} 42. Rg2 {[%emt 0:00:11]} Rg8 {[%emt 0:00:17]} 43. Rg1 {[%emt 0:00:11]} Ke7 {[%emt 0:00:18]} 44. Rc1 {[%emt 0:00:05]} Kd6 {[%emt 0:00:02] Prevents Rc7} 45. Rc2 {[%emt 0:00:09]} Rh8 {[%emt 0:00:08]} 46. b4 {[%emt 0:00:14] Hoping for Rc5.} axb3 $1 {[%emt 0:00:06]} 47. axb3 {[%emt 0:00:00]} Ra8 {[%emt 0:00:06]} 48. Rd2+ {[%emt 0:00:01]} Ke7 {[%emt 0:00:02]} 49. Rd4 {[%emt 0:00:08]} Rc8 {[%emt 0:00:11]} 50. Ke3 {[%emt 0:00:16]} e5 {[%emt 0:00:33]} 51. fxe5 {[%emt 0:00:05]} fxe5 {[%emt 0:00:02]} 52. Rd5 {[%emt 0:00:01][%csl LRb5,LRe5]} Rc3+ {[%emt 0:00:01]} 53. Kd2 {[%emt 0:00:01]} Rxb3 {[%emt 0:00:03] Threatens to win with ...Kf6.} 54. Rxe5+ {[%emt 0:00:01]} Kf6 {[%emt 0:00:08]} 55. Rf5+ {[%emt 0:00:01]} Kg7 {[%emt 0:00:00]} 56. g5 {[%emt 0:00:04]} hxg5 {[%emt 0:00:06]} 57. Rxg5+ {[%emt 0:00:00]} Kh6 {[%emt 0:00:02]} 58. Rf5 {[%emt 0:00:01]} Kg7 {[%emt 0:00:02]} 59. Kc2 {[%emt 0:00:04]} Re3 {[%emt 0:00:03]} 60. Rxb5 {[%emt 0:00:05]} Rxe4 {[%emt 0:00:01]} 61. Kd3 {[%emt 0:00:00]} Rh4 {[%emt 0:00:01]} 62. Ke3 {[%emt 0:00:01]} Kh6 {[%emt 0:00:01]} 63. Rf5 {[%emt 0:00:02]} Rxh5 {[%emt 0:00:00]} 64. Rxf7 {[%emt 0:00:01]} Kg6 {[%emt 0:00:01]} 65. Rf4 {[%emt 0:00:02]} Rf5 {[%emt 0:00:02]} 66. Rxf5 {[%emt 0:00:01]} Kxf5 {[%emt 0:00:00] Weighted Error Value: White=0.04 (flawless) /Black=0.04 (flawless)} 1/2-1/2

[Event "AI Cup Div-1 2023"]
[Site "Online"]
[Date "2023.09.27"]
[Round "52.1"]
[White "Nepomniachtchi, Ian"]
[Black "Firouzja, Alireza"]
[Result "0-1"]
[Annotator "TA"]
[ECO "C58"]
[WhiteElo "2771"]
[BlackElo "2777"]
[PlyCount "172"]
[EventDate "2023.09.18"]
[EventType "k.o."]
[EventCountry "NET"]
[SourceTitle "playchess.com"]
[Source "ChessBase"]
[SourceQuality "1"]
[TimeControl "900+3"]

{[%evp 14,172,33,41,44,22,56,54,31,28,25,20,19,24,15,0,0,-9,41,52,61,48,70,83,66,28,28,28,37,33,32,35,31,27,29,31,40,18,37,21,40,35,17,0,0,-4,-13,-62,-12,-28,-20,-68,-66,-62,-55,-54,-31,-39,-41,-35,-47,-42,-37,-32,-34,-42,-32,-34,-12,-34,-39,-41,-65,-47,-33,-38,-8,-8,-9,-100,-100,-100,-100,-100,-100,-100,-83,-83,-83,-83,-83,-83,-83,-100,-100,-418,-284,-218,-52,-52,-52,-52,-52,-59,-73,-66,-74,-80,-80,-85,-92,-118,-118,-202,-194,-200,-194,-200,-192,-201,-203,-4570,-202,-203,-203,-226,-237,-245,-201,-201,-201,-201,-201,-201,0,-201,-201,-201,-201,-201,-201,-201,-201,-201,-201,-29969,-29971,-29970,-29971,-29975,-29976,-29976,-29977,-29977,-29978,-29978,-29979,-29979,-29980,-29982,-29979]} 1. e4 {[%emt 0:00:03]} e5 {[%emt 0:00:07]} 2. Nf3 {[%emt 0:00:02]} Nc6 {[%emt 0:00:01]} 3. Bc4 {[%emt 0:00:00]} Nf6 {[%emt 0:00:01]} 4. Ng5 {[%emt 0:00:02]} d5 {[%emt 0:00:02]} 5. exd5 {[%emt 0:00:00]} Na5 {[%emt 0:00:01]} 6. Bb5+ {[%emt 0:00:00]} c6 {[%emt 0:00:01]} 7. dxc6 {[%emt 0:00:01]} bxc6 {[%emt 0:00:00]} 8. Bd3 {[%emt 0:00:01]} Nd5 {[%emt 0:00:02] Dodges Nc3. C58: Two Knights: 4 Ng5 d5 5 exd5 Na5 sidelines.} 9. h4 {[%emt 0:00:01]} (9. Qh5 $2 g6 10. Nxf7 gxh5 $17) 9... h6 $1 {[%emt 0:01:23][%mdl 4] is currently scoring better than 9...Nf4.} 10. Qh5 {[%emt 0:00:03][%csl Gg5][%cal Rh5f7]} Qf6 {[%emt 0:00:19] ...Nf4 would be deadly. White is slightly better.} 11. Ne4 {[%emt 0:00:03]} Qe6 {[%emt 0:00:18]} 12. b3 {[%emt 0:00:02]} g6 {[%emt 0:02:14]} 13. Qe2 {[%emt 0:00:02]} f5 {[%emt 0:00:35]} 14. Nec3 {[%emt 0:00:03]} Nf4 {[%emt 0:00:35][%csl LRe2,LRg2]} 15. Qf1 {[%emt 0:00:02]} e4 {[%emt 0:00:37]} (15... Bb7 $11) 16. Be2 $14 {[%emt 0:00:09]} Bg7 {[%emt 0:00:25]} 17. Bb2 $1 {[%emt 0:00:12]} Nd3+ {[%emt 0:01:31] [#]} 18. cxd3 $146 {[%emt 0:01:01]} ({Predecessor:} 18. Bxd3 exd3+ 19. Kd1 dxc2+ 20. Kxc2 O-O 21. Na3 Rb8 22. Nc4 f4 23. Re1 Qf5+ 24. Ne4 {1-0 Marrujo Pardo,M (2238)-Amigo Quintana,A (2116) CHI-ch Santiago de Chile 2023 (4)}) 18... exd3 {[%emt 0:00:00][%cal Oc8a6][%mdl 64] [#] Pin} 19. Kd1 $1 {[%emt 0:00:43]} dxe2+ {[%emt 0:00:25]} 20. Qxe2 {[%emt 0:00:00]} Qxe2+ {[%emt 0:00:07]} 21. Kxe2 {[%emt 0:00:01]} Ba6+ {[%emt 0:00:05]} 22. Kd1 {[%emt 0:00:02]} O-O-O {[%emt 0:00:07]} 23. Na4 {[%emt 0:00:09]} Bxb2 {[%emt 0:00:54]} 24. Nxb2 {[%emt 0:00:00]} Rd4 {[%emt 0:00:06]} 25. Kc2 {[%emt 0:00:31]} Rhd8 {[%emt 0:00:09]} (25... c5 {with more complications.} 26. Na4 Bd3+ 27. Kc3 Rhd8) 26. h5 {[%emt 0:01:06]} g5 {[%emt 0:00:07]} 27. Re1 {[%emt 0:00:10]} Nb7 {[%emt 0:00:36]} 28. Re5 {[%emt 0:00:31]} (28. Re6 $5 {[%cal Re6c6]} R8d6 29. Rxd6 Nxd6 30. Nc3 $14) 28... Rf4 {[%emt 0:00:34]} 29. f3 {[%emt 0:00:09]} Bf1 {[%emt 0:00:08][%cal Ba6f1,Bf1h3,Bh3g4][%mdl 32]} 30. g4 {[%emt 0:02:53]} fxg4 {[%emt 0:00:26] Black is much more active. The white rooks are badly placed.} ({Black should try} 30... Nd6 $15 31. d3 fxg4 32. fxg4 (32. Nd2 Bh3 $15) 32... Bh3) 31. fxg4 $11 {[%emt 0:00:03]} Bh3 {[%emt 0:00:50]} 32. Nc3 {[%emt 0:00:04]} (32. Re6 $11 {feels stronger.}) 32... Bxg4 $15 {[%emt 0:00:05]} (32... Rxg4 33. Nc4 $11) 33. Nc4 {[%emt 0:00:04]} Bf5+ {[%emt 0:00:21]} ({Don't play} 33... Bxh5 34. Re6 $11) 34. Kb2 {[%emt 0:00:05]} Bd3 {[%emt 0:00:05]} (34... Nd6 $5 {[%cal Rf4c4]} 35. Ne3 Bd7 $15) 35. Re6 {[%emt 0:00:19]} Bxc4 {[%emt 0:00:07][%mdl 64] Discovered Attack} 36. Rxc6+ {[%emt 0:00:03]} Kb8 {[%emt 0:00:02]} 37. Rxc4 {[%emt 0:00:06]} Rxd2+ {[%emt 0:00:08]} 38. Ka3 {[%emt 0:00:01]} Rxc4 {[%emt 0:00:32]} 39. bxc4 {[%emt 0:00:00][%mdl 4096] Endgame KRN-KRN} Rd3 {[%emt 0:00:05]} 40. Kb3 {[%emt 0:00:19]} Na5+ {[%emt 0:00:14]} 41. Kc2 {[%emt 0:00:18]} Rh3 {[%emt 0:00:01]} 42. Rf1 {[%emt 0:00:16]} Rxh5 {[%emt 0:00:21]} 43. c5 {[%emt 0:00:38]} g4 {[%emt 0:00:14]} 44. Ne4 {[%emt 0:00:01]} Nb7 {[%emt 0:00:48]} 45. Rf8+ {[%emt 0:00:12]} Kc7 {[%emt 0:00:02]} 46. Rf7+ {[%emt 0:00:01]} (46. Rg8 $1 $11) 46... Kc6 $17 {[%emt 0:00:06]} 47. Rg7 {[%emt 0:00:33]} Nxc5 {[%emt 0:00:47]} 48. Rg6+ {[%emt 0:00:02]} Kc7 {[%emt 0:00:14]} 49. Rg7+ {[%emt 0:00:04]} Kb6 {[%emt 0:00:02]} 50. Rg6+ {[%emt 0:00:16]} Ka5 {[%emt 0:00:01]} 51. Rxg4 {[%emt 0:00:00]} Nxe4 {[%emt 0:00:02]} 52. Rxe4 {[%emt 0:00:02] KR-KR} Kb5 {[%emt 0:00:23]} 53. Re7 {[%emt 0:00:25]} a5 {[%emt 0:00:03]} 54. Rh7 $2 {[%emt 0:00:02][%mdl 8192]} (54. Kb3 $17 {is a better chance.}) 54... Rh2+ {[%emt 0:00:06]} 55. Kb3 {[%emt 0:00:01] [#]} a4+ $2 {[%emt 0:00:04]} (55... Rh3+ $1 $19 56. Kb2 Ka4) 56. Ka3 $15 {[%emt 0:00:01]} Rh3+ {[%emt 0:00:01]} 57. Kb2 {[%emt 0:00:01]} a3+ {[%emt 0:00:05]} 58. Kc2 {[%emt 0:00:01]} Kc5 {[%emt 0:00:05]} 59. Rh8 {[%emt 0:00:14]} h5 {[%emt 0:00:01]} 60. Ra8 {[%emt 0:00:03]} Kc4 {[%emt 0:00:04] White must now prevent ...Rh2+.} 61. Ra4+ {[%emt 0:00:02]} Kb5 {[%emt 0:00:01]} 62. Ra8 {[%emt 0:00:02]} h4 {[%emt 0:00:05]} 63. Rh8 {[%emt 0:00:03]} (63. Rf8 $17 {keeps fighting.}) 63... Kc4 $19 {[%emt 0:00:02]} 64. Rc8+ {[%emt 0:00:05]} Kd5 {[%emt 0:00:02]} 65. Ra8 {[%emt 0:01:05]} Rg3 {[%emt 0:00:05]} 66. Ra5+ {[%emt 0:00:01]} Ke6 {[%emt 0:00:04]} 67. Kd2 $2 {[%emt 0:00:13]} (67. Rh5 h3 68. Kd1) 67... h3 $2 {[%emt 0:00:04]} (67... Rg2+ 68. Kc3 Rxa2) 68. Rh5 {[%emt 0:00:12]} Kf6 {[%emt 0:00:04] aiming for ...Rg2+.} 69. Ke2 {[%emt 0:00:05]} Kg6 {[%emt 0:00:01]} 70. Rh8 {[%emt 0:00:02] Threatening mate with Rg8+.} Rc3 {[%emt 0:00:01]} 71. Kd2 {[%emt 0:00:04] [#]} Kg7 $1 {[%emt 0:00:04]} 72. Rh4 {[%emt 0:00:04]} Rg3 {[%emt 0:00:01] And now ...Rg2+ would win.} 73. Ke2 {[%emt 0:00:02]} Kf6 $2 {[%emt 0:00:01]} (73... Rg2+ $19 74. Kf3 Rxa2 75. Rxh3 Ra1) 74. Kf2 $2 {[%emt 0:00:14]} (74. Rh5 $1 $11 Kg6 75. Rh8) 74... Rc3 {[%emt 0:00:02]} 75. Kg1 {[%emt 0:00:22]} Ke5 {[%emt 0:00:05]} 76. Kh2 {[%emt 0:00:14]} Kd5 {[%emt 0:00:08]} ({Don't go for} 76... Rc2+ $2 77. Kh1 $19) 77. Rf4 {[%emt 0:00:14]} Rc2+ {[%emt 0:00:03]} 78. Kxh3 {[%emt 0:00:01]} Rxa2 {[%emt 0:00:00] ( -> ...Rc2)} 79. Kg3 $2 {[%emt 0:00:05]} (79. Rf3 $19) 79... Rb2 {[%emt 0:00:06] Black mates.} 80. Ra4 {[%emt 0:00:17]} a2 {[%emt 0:00:00]} 81. Kf3 {[%emt 0:00:09]} Kc5 {[%emt 0:00:01]} 82. Ke3 {[%emt 0:00:03]} Kb5 {[%emt 0:00:01]} 83. Ra8 {[%emt 0:00:01]} Kc4 {[%emt 0:00:02]} 84. Ra7 {[%emt 0:01:10]} Kc3 {[%emt 0:00:01]} 85. Rc7+ {[%emt 0:00:06]} Kb3 {[%emt 0:00:01]} 86. Ra7 {[%emt 0:00:00]} Kc2 {[%emt 0:00:02] Weighted Error Value: White=0.20 (precise) /Black=0.15 (very precise)} 0-1